bitfinex/quotes_ETHUSD_20220212
["timestamp","ask_amount","ask_price","bid_price","bid_amount"]
[1644686321907,4.09310568,2932.9,2931.3,0.6615]
[1644686322104,11.7626,2933.1,2931.6,1.70572]
[1644686322105,1.4516137,2932.8,2931.6,1.70572]
[1644686322306,3.57646804,2933.0,2931.7,0.1705]
[1644686322307,1.4516137,2932.7,2931.7,0.1705]
[1644686322504,3.57646804,2933.0,2931.7,0.1705]
[1644686322706,0.66822491,2932.4,2931.7,0.1705]
[1644686323605,0.66822491,2932.4,2931.9,0.01043613]
[1644686324405,0.66822491,2932.4,2931.7,1.32336]
[1644686324605,1.0,2932.9,2932.0,0.01043596]
[1644686325010,1.0,2932.9,2932.2,0.85277]
[1644686325207,1.0,2933.0,2932.2,0.85277]
[1644686325440,1.35209997,2933.2,2932.2,0.85277]
[1644686325645,1.45136058,2933.1,2932.1,1.70549]
[1644686325846,1.45136058,2933.1,2932.5,0.01043522]
[1644686326045,0.83409898,2933.0,2932.5,0.01043522]
[1644686326449,1.45140925,2932.9,2932.5,0.01043522]
[1644686326747,1.45140925,2932.9,2931.7,6.68409]
[1644686326748,0.02087043,2932.3,2931.7,6.68409]
[1644686326945,0.02087043,2932.3,2931.7,6.51359]
[1644686327147,1.59912841,2933.6,2932.1,0.01200676]
[1644686327348,1.59912841,2933.6,2932.2,6.3123]
[1644686327349,1.45123087,2933.4,2932.2,6.3123]
[1644686327547,1.45119331,2933.3,2932.5,0.85245]
[1644686327750,1.59912841,2933.6,2932.6,0.491]
[1644686327751,1.45129357,2933.2,2932.6,0.491]
[1644686327947,3.5,2933.5,2932.2,0.491]
[1644686327948,1.45130298,2933.1,2932.2,0.491]
[1644686328146,0.83729737,2932.6,2932.2,0.491]
[1644686328646,0.83729737,2932.6,2932.2,2.19641]
[1644686329313,0.83729737,2932.6,2932.0,0.1705]
[1644686329614,0.83729737,2932.6,2931.9,0.1705]
[1644686329811,0.83729737,2932.6,2931.8,2.57510707]
[1644686330818,0.83729737,2932.6,2932.1,0.01043588]
[1644686331017,1.45155786,2932.5,2932.1,0.01043588]
[1644686331418,5.00581445,2932.5,2932.1,0.01043588]
[1644686331621,1.83729737,2932.6,2931.8,1.42220707]
[1644686331917,1.83729737,2932.6,2932.2,0.01043571]
[1644686331918,1.6220896,2932.5,2932.2,0.01043571]
[1644686332118,0.1705,2932.5,2932.2,0.01043571]
[1644686332720,0.83729737,2932.6,2932.2,0.01043571]
[1644686332939,0.79134012,2932.1,2931.6,1.02348]
[1644686333141,0.79134012,2932.1,2931.6,0.85298]
[1644686333539,5.38425149,2933.0,2931.6,0.85298]
[1644686333738,1.0,2932.5,2931.6,0.85298]
[1644686333938,5.68425149,2933.0,2931.6,0.85298]
[1644686333939,1.45162585,2932.4,2931.6,0.85298]
[1644686334142,3.80190058,2932.8,2931.6,0.85298]
[1644686334340,2.45161229,2932.7,2931.6,0.85298]
[1644686334540,0.64184864,2932.2,2931.6,0.85298]
[1644686334743,0.1705,2933.1,2931.7,20.4305]
[1644686334941,1.4514432,2933.0,2932.1,0.85273]
[1644686335139,1.4514432,2933.0,2932.2,0.491]
[1644686335340,1.4514432,2933.0,2932.2,0.791]
[1644686335544,1.4514432,2933.0,2932.3,0.01042976]
[1644686335743,1.4514432,2933.0,2932.4,0.491]
[1644686335945,0.01042641,2933.2,2932.4,0.491]
[1644686336144,0.01042641,2933.2,2932.4,2.19628]
[1644686336145,1.45131413,2933.1,2932.4,2.19628]
[1644686336545,2.09304756,2933.1,2932.4,2.19628]
[1644686336794,0.64173343,2933.1,2932.4,2.20671008]
[1644686336993,1.45129617,2933.0,2932.4,2.20671008]
[1644686337590,0.64173343,2933.1,2932.4,2.20671008]
[1644686337792,0.64173343,2933.1,2932.5,0.4703]
[1644686337990,0.64173343,2933.1,2932.6,0.491]
[1644686338391,0.01042698,2933.2,2932.6,1.51393]
[1644686338994,0.1703,2933.3,2932.7,0.4703]
[1644686339193,0.1703,2933.3,2932.8,0.491]
[1644686339194,0.0056016,2933.2,2932.8,0.491]
[1644686339398,0.0056016,2933.2,2932.9,0.1703]
[1644686339596,0.0056016,2933.2,2933.0,0.491]
[1644686339797,0.0056016,2933.2,2933.0,2.19582]
[1644686339999,0.1703,2933.3,2933.0,2.49582]
[1644686340298,0.1703,2933.3,2933.1,0.3]
[1644686340299,0.01043335,2933.2,2933.1,0.3]
[1644686340544,0.01043335,2933.2,2933.1,0.791]
[1644686340746,0.01043335,2933.2,2933.1,0.491]
[1644686340945,0.01043335,2933.2,2933.1,2.19584]
[1644686341146,0.01043335,2933.2,2933.1,2.49584]
[1644686341345,0.1703,2933.3,2933.1,2.19584]
[1644686341546,0.18073327,2933.3,2933.1,2.19584]
[1644686341948,0.18073327,2933.3,2933.2,0.3]
[1644686342346,0.18073327,2933.3,2933.2,0.791]
[1644686342546,0.1703,2933.3,2933.2,0.791]
[1644686342748,0.0104331,2933.4,2933.3,1.02258]
[1644686342946,0.0104331,2933.4,2933.3,1.51358]
[1644686343147,0.0104331,2933.4,2933.3,2.96589]
[1644686343846,1.46256041,2933.6,2933.3,2.96589]
[1644686343847,1.46256041,2933.6,2933.3,1.81358]
[1644686344047,1.46256041,2933.6,2933.3,1.34328]
[1644686344293,0.01043294,2933.5,2933.4,0.3]
[1644686344497,0.01043294,2933.5,2933.4,0.6613]
[1644686344894,1.46256041,2933.6,2933.4,0.9613]
[1644686345093,1.46256041,2933.6,2933.4,1.2613]
[1644686345298,1.47299318,2933.6,2933.4,1.2613]
[1644686345898,0.04172483,2934.0,2933.5,7.9522]
[1644686346097,12.3556519,2934.6,2933.6,0.491]
[1644686346098,1.45082562,2933.9,2933.6,0.491]
[1644686346298,0.6469519,2934.6,2933.6,0.491]
[1644686346498,0.6469519,2934.6,2933.8,0.85224]
[1644686346700,0.6883358,2934.3,2933.9,0.491]
[1644686346899,1.45078775,2934.2,2933.9,0.491]
[1644686347599,1.45638386,2934.2,2933.9,0.491]
[1644686347799,1.45078775,2934.1,2933.9,0.491]
[1644686348645,1.45078775,2934.2,2933.9,0.491]
[1644686348845,1.46121962,2934.1,2933.9,0.491]
[1644686349051,1.45078775,2934.0,2933.9,0.491]
[1644686349845,1.45078775,2934.2,2933.9,0.491]
[1644686350048,0.01043195,2934.1,2933.9,0.491]
[1644686350245,1.45078775,2934.0,2933.9,0.491]
[1644686350849,1.40078775,2934.0,2933.4,0.1703]
[1644686351048,1.40078775,2934.0,2933.4,0.4703]
[1644686351049,0.86548437,2933.8,2933.4,0.4703]
[1644686351251,0.86548437,2933.8,2933.5,0.85238]
[1644686351449,0.01043195,2934.1,2933.5,0.85238]
[1644686352099,5.1793593,2934.2,2933.3,1.7048]
[1644686352302,0.0104322,2933.9,2933.3,1.7048]
[1644686353305,0.1703,2934.1,2933.3,1.7048]
[1644686353306,0.1703,2934.1,2933.4,0.3]
[1644686353502,0.01043253,2933.7,2933.3,2.1958]
[1644686353702,0.01043253,2933.7,2933.4,0.3]
[1644686354304,0.01043253,2933.7,2933.5,0.6613]
[1644686354504,0.6469519,2934.5,2933.5,0.6613]
[1644686354703,0.6469519,2934.6,2933.7,0.85232]
[1644686354906,0.68867119,2934.5,2933.7,1.34332]
[1644686355105,0.04171929,2934.5,2933.7,1.34332]
[1644686355308,0.81239728,2934.3,2933.7,1.34332]
[1644686355950,0.81239728,2934.3,2933.7,0.491]
[1644686355951,0.01043187,2934.1,2933.7,0.491]
[1644686356752,0.01043187,2934.1,2933.5,0.1703]
[1644686356953,0.81239728,2934.3,2933.5,0.1703]
[1644686356954,5.36018105,2934.3,2933.5,0.1703]
[1644686357155,0.01043203,2934.0,2933.5,0.1703]
[1644686357351,0.01043203,2934.0,2933.1,0.3]
[1644686357556,0.1703,2933.9,2932.9,0.0104361]
[1644686357753,6.2469519,2933.8,2932.9,0.0104361]
[1644686357953,0.76352476,2933.0,2932.9,0.0104361]
[1644686358152,0.76352476,2933.0,2932.2,0.1703]
[1644686358352,0.76352476,2933.0,2932.9,0.01043505]
[1644686358952,0.71352476,2933.0,2932.9,0.01043505]
[1644686359396,0.71352476,2933.0,2932.2,0.1703]
[1644686359597,3.61063922,2932.9,2932.8,0.01043464]
[1644686359797,1.0,2932.9,2932.8,0.01043464]
[1644686360198,3.59106334,2932.9,2932.8,0.01043464]
[1644686360396,4.59106334,2932.9,2932.8,0.01043464]
[1644686360599,4.59106334,2932.9,2931.9,0.1703]
[1644686360803,1.0,2932.8,2931.9,0.1703]
[1644686361002,1.1705,2932.8,2932.7,0.00982215]
[1644686361600,4.89996685,2932.8,2932.7,0.00982215]
[1644686361801,4.89996685,2932.8,2931.9,0.1703]
[1644686361999,0.7462787,2932.2,2931.9,0.1703]
[1644686362202,1.1705,2932.8,2931.9,0.1703]
[1644686362400,0.1705,2932.8,2931.9,0.1703]
[1644686363063,3.73687931,2932.8,2931.9,0.1703]
[1644686363269,0.71481041,2932.3,2932.2,0.00982288]
[1644686364364,0.71481041,2932.3,2931.7,0.491]
[1644686364563,1.1705,2932.8,2931.7,0.48796614]
[1644686364967,0.1705,2932.8,2932.0,0.85284]
[1644686365173,0.1705,2932.8,2932.0,1.34384]
[1644686365576,0.1705,2932.8,2932.1,0.3]
[1644686365577,0.65102436,2932.7,2932.1,0.3]
[1644686366375,0.1705,2932.8,2932.2,0.6615]
[1644686366577,2.82398809,2933.6,2932.2,7.5377]
[1644686366578,0.6469519,2933.6,2932.2,7.5377]
[1644686366797,0.86268064,2934.1,2932.6,0.3]
[1644686366798,0.6469519,2934.0,2932.6,0.3]
[1644686367000,0.6469519,2934.0,2932.7,0.1703]
[1644686367001,0.00559477,2933.0,2932.7,0.1703]
[1644686367198,0.00559477,2933.0,2932.7,0.6613]
[1644686367398,0.00559477,2933.0,2932.9,1.70489]
[1644686367598,0.00559477,2933.0,2932.9,2.36619]
[1644686367799,0.6469519,2933.9,2932.9,2.36619]
[1644686368004,0.00559565,2933.1,2933.0,0.4703]
[1644686368201,0.00559565,2933.1,2933.0,0.9613]
[1644686369002,0.78553901,2933.5,2933.0,0.9613]
[1644686369204,0.01043344,2933.2,2933.0,0.791]
[1644686369404,0.01043344,2933.2,2933.1,0.85243]
[1644686369602,0.01043344,2933.2,2933.0,0.09558522]
[1644686370205,0.1703,2933.8,2933.0,0.09558522]
[1644686370463,0.01043335,2933.2,2933.0,0.09558522]
[1644686370656,0.01043335,2933.2,2933.1,0.85243]
[1644686371452,1.0,2934.0,2933.1,0.85243]
[1644686371656,0.01043327,2933.3,2933.1,0.85243]
[1644686372656,0.83112499,2933.7,2933.1,0.85243]
[1644686372856,0.01043319,2933.3,2933.1,0.85243]
[1644686373859,0.83112499,2933.7,2933.1,0.85243]
[1644686374196,0.01043319,2933.3,2933.2,1.091]
[1644686375097,0.83695362,2933.9,2933.2,1.091]
[1644686375295,0.83695362,2933.9,2933.4,0.85238]
[1644686375296,1.49265129,2933.8,2933.4,0.85238]
[1644686375500,1.45092512,2933.7,2933.5,0.491]
[1644686375701,1.45092512,2933.7,2933.5,0.791]
[1644686375904,1.45092512,2933.7,2933.5,1.091]
[1644686376301,1.45092512,2933.6,2933.5,1.091]
[1644686376500,0.01043253,2933.7,2933.5,1.091]
[1644686376699,0.01043253,2933.7,2933.5,0.491]
[1644686376900,1.45090611,2933.6,2933.5,0.491]
[1644686377502,0.6469519,2934.3,2933.5,1.091]
[1644686377964,0.7278384,2933.9,2933.5,1.091]
[1644686378155,1.45090611,2933.8,2933.5,1.091]
[1644686378856,1.4613357,2933.8,2933.5,1.091]
[1644686379057,1.45090611,2933.7,2933.5,2.79563]
[1644686379259,1.45090611,2933.7,2933.6,0.1703]
[1644686379457,1.45090611,2933.7,2933.6,0.491]
[1644686379858,1.45090611,2933.7,2933.6,0.48646336]
[1644686381263,1.4613357,2933.8,2933.6,0.48646336]
[1644686381461,1.45090611,2933.7,2933.6,0.48646336]
[1644686382505,0.7278384,2933.9,2933.6,0.48646336]
[1644686382506,1.4613357,2933.8,2933.6,0.48646336]
[1644686382707,1.45090611,2933.7,2933.6,0.48646336]
[1644686383504,1.45090611,2933.8,2933.6,0.48646336]
[1644686383706,1.45090611,2933.7,2933.6,0.48646336]
[1644686384905,1.4613357,2933.8,2933.6,0.48646336]
[1644686385108,1.45090611,2933.7,2933.6,0.48646336]
[1644686385956,1.4613357,2933.8,2933.6,0.48646336]
[1644686386156,1.45090611,2933.7,2933.6,0.48646336]
[1644686388457,0.8172519,2934.2,2933.6,0.48646336]
[1644686388458,0.01042959,2933.8,2933.6,0.48646336]
[1644686388657,1.45090611,2933.7,2933.6,0.48646336]
[1644686389702,1.45090611,2933.7,2933.4,0.1704]
[1644686389901,1.45090611,2933.6,2933.5,0.3]
[1644686390101,1.45090611,2933.6,2933.4,0.9614]
[1644686390400,1.45090611,2933.5,2933.4,1.2614]
[1644686390606,1.45090611,2933.7,2933.4,0.9114]
[1644686390904,1.46133595,2933.6,2933.4,2.91603]
[1644686391104,0.01042984,2933.6,2933.4,2.91603]
[1644686391306,0.01042984,2933.6,2933.4,22.87603]
[1644686391506,0.01042984,2933.6,2933.5,1.7044]
[1644686391708,1.8677519,2934.6,2933.5,1.7044]
[1644686391709,1.8677519,2934.6,2933.5,2.1954]
[1644686391906,2.09773537,2934.5,2933.5,0.491]
[1644686392106,0.01042984,2933.6,2933.5,0.491]
[1644686392957,0.85573043,2934.2,2933.5,0.491]
[1644686393147,1.45076591,2934.1,2933.7,0.85224]
[1644686393348,1.49247868,2934.1,2933.8,0.491]
[1644686393550,1.45076591,2934.0,2933.8,0.491]
[1644686393852,1.45076591,2934.0,2933.8,0.791]
[1644686394053,5.18522771,2935.0,2934.0,7.1]
[1644686394054,0.86268064,2934.8,2934.0,7.1]
[1644686394259,1.03298064,2935.5,2934.2,19.96]
[1644686394554,1.27434102,2935.8,2934.2,19.96]
[1644686394555,0.86268064,2935.8,2935.4,0.76556489]
[1644686394754,0.86268064,2936.0,2935.5,0.491]
[1644686394953,1.72644477,2936.4,2935.5,0.491]
[1644686394954,0.86268064,2936.1,2935.5,0.491]
[1644686395157,0.86268064,2936.4,2935.5,1.34266]
[1644686395355,1.1347,2936.7,2935.6,0.1703]
[1644686395554,1.1347,2936.7,2935.7,3.04548]
[1644686395754,1.1347,2936.7,2936.1,0.75748005]
[1644686395956,0.1701,2937.0,2936.2,0.491]
[1644686396156,0.1701,2937.0,2936.3,0.8514]
[1644686396356,1.03278064,2937.4,2936.4,0.491]
[1644686396805,0.86268064,2937.3,2936.4,0.491]
[1644686396999,0.1701,2937.2,2936.4,0.491]
[1644686397201,1.03278064,2937.2,2936.4,0.491]
[1644686397402,0.86268064,2937.4,2936.4,0.491]
[1644686397601,0.8426935,2936.5,2936.4,0.491]
[1644686397804,0.8426935,2936.5,2935.6,26.8572]
[1644686397805,0.8426935,2936.5,2935.9,0.1701]
[1644686398002,0.8426935,2936.5,2935.5,0.1701]
[1644686398204,0.8426935,2936.5,2935.3,0.791]
[1644686398803,0.8426935,2936.5,2935.3,1.44743096]
[1644686399005,0.87527741,2936.0,2935.3,0.791]
[1644686399407,0.8857027,2936.0,2935.3,0.791]
[1644686400210,0.87527741,2936.0,2935.3,0.491]
[1644686400456,0.01042571,2935.8,2935.3,0.491]
[1644686401252,0.83570312,2936.0,2935.3,0.491]
[1644686401654,0.01042588,2935.7,2935.3,0.491]
[1644686401957,0.72026486,2935.5,2934.7,0.1703]
[1644686402756,0.72026486,2935.5,2934.7,0.93624205]
[1644686402954,0.1703,2935.6,2934.7,0.93624205]
[1644686403154,1.41445384,2935.9,2934.7,0.93624205]
[1644686403353,1.41445384,2935.9,2934.9,0.85197]
[1644686403554,0.00555384,2935.9,2934.9,0.85197]
[1644686403755,3.71383339,2936.1,2934.9,0.85197]
[1644686403958,0.73671811,2935.5,2934.9,0.85197]
[1644686404194,0.73671811,2935.5,2934.9,1.15197]
[1644686404996,0.73671811,2935.5,2934.9,1.32227]
[1644686405197,0.73671811,2935.5,2934.9,1.15197]
[1644686405397,0.73671811,2935.5,2934.9,1.32227]
[1644686406201,0.73671811,2935.5,2934.9,1.02227]
[1644686406801,0.73671811,2935.5,2934.8,0.01042272]
[1644686407400,0.73671811,2935.5,2934.5,1.70404]
[1644686407401,4.36154371,2935.5,2934.5,1.70404]
[1644686407602,0.73671811,2935.5,2934.5,1.70404]
[1644686407800,0.73671811,2935.5,2934.8,0.01042262]
[1644686408064,0.73671811,2935.5,2934.8,0.86243262]
[1644686408655,0.73671811,2935.5,2934.8,0.85201]
[1644686408855,0.73671811,2935.5,2934.8,0.86243262]
[1644686409957,0.73671811,2935.5,2934.8,0.85201]
[1644686410158,0.73671811,2935.5,2934.8,0.86243262]
[1644686410562,4.33346258,2935.5,2934.8,0.86243262]
[1644686410758,4.33346258,2935.5,2934.6,0.491]
[1644686410759,0.68449774,2934.7,2934.6,0.491]
[1644686412002,0.67988121,2934.7,2934.6,0.491]
[1644686412201,0.67988121,2934.7,2934.5,1.70404]
[1644686412403,0.67988121,2934.7,2934.5,1.70892052]
[1644686413502,0.67988121,2934.7,2934.5,1.70404]
[1644686413701,0.67988121,2934.7,2934.5,1.7089206]
[1644686413905,0.67988121,2934.7,2934.5,0.0048806]
[1644686414105,3.54127358,2934.6,2934.5,0.0048806]
[1644686414305,3.60754189,2934.6,2934.5,0.0048806]
[1644686414504,5.05813197,2934.6,2934.5,0.0048806]
[1644686414705,5.05813197,2934.6,2933.8,0.3]
[1644686414905,4.35967573,2934.7,2934.0,0.1703]
[1644686415107,1.45055456,2934.6,2934.4,0.01042291]
[1644686415304,1.45059319,2934.5,2934.4,0.01042291]
[1644686415551,0.67988121,2934.7,2934.4,0.01042291]
[1644686415951,0.67988121,2934.7,2933.8,0.1703]
[1644686416151,0.63833701,2934.6,2934.3,0.01042308]
[1644686417151,0.63833701,2934.6,2933.8,0.1703]
[1644686417353,0.63833701,2934.6,2934.3,0.01007129]
[1644686417354,4.21895234,2934.6,2934.3,0.01007129]
[1644686417553,1.45059421,2934.5,2934.3,0.01007129]
[1644686417755,3.56754067,2934.4,2934.3,0.01007129]
[1644686417952,1.45059421,2934.4,2934.3,0.01007129]
[1644686418152,1.0,2934.4,2934.3,0.01007129]
[1644686418353,1.45059421,2934.4,2933.8,0.1703]
[1644686418553,1.45059421,2934.5,2934.2,0.01007144]
[1644686418753,7.1,2934.3,2933.3,0.85243]
[1644686418956,7.1,2934.3,2932.9,0.85257]
[1644686418957,5.0,2934.0,2932.9,0.85257]
[1644686419206,5.0,2934.0,2932.2,0.04031353]
[1644686419207,0.85282,2933.6,2932.2,0.04031353]
[1644686419406,1.62089421,2933.5,2932.2,3.54031353]
[1644686419606,1.45059421,2933.4,2932.0,0.25]
[1644686419805,0.80226226,2932.7,2932.1,0.1703]
[1644686420006,0.1703,2933.3,2932.1,0.1703]
[1644686420007,0.1703,2933.3,2932.1,1.42209697]
[1644686420205,1.45126919,2933.2,2932.2,0.1703]
[1644686420409,1.45126919,2933.2,2932.0,0.1703]
[1644686420609,1.45126919,2933.2,2932.1,0.85278]
[1644686420811,1.1703,2933.3,2932.2,0.1703]
[1644686421010,1.81537508,2933.3,2932.6,0.00487594]
[1644686421209,4.39796741,2933.3,2932.6,0.00487594]
[1644686421411,1.0,2933.2,2932.6,0.00487594]
[1644686421809,1.0,2933.2,2932.2,0.1703]
[1644686422009,4.65405145,2933.2,2932.2,0.4703]
[1644686422210,0.64507508,2933.3,2932.8,0.0048756]
[1644686422413,0.1703,2933.2,2932.8,0.0048756]
[1644686422812,1.1703,2933.2,2932.8,0.0048756]
[1644686423059,1.1703,2933.2,2932.2,1.29771736]
[1644686423259,0.64507508,2933.3,2932.2,1.29771736]
[1644686423457,4.24202629,2933.3,2932.9,0.01042548]
[1644686423656,0.64507508,2933.3,2932.9,0.01042548]
[1644686424057,4.24904458,2933.3,2932.9,0.01042548]
[1644686424259,4.25621543,2933.3,2932.2,0.4703]
[1644686424457,0.1703,2933.4,2932.4,0.85268]
[1644686424659,0.1703,2933.4,2932.2,3.02826]
[1644686424660,0.1703,2933.4,2933.0,0.01042532]
[1644686424857,0.1703,2933.4,2933.1,0.491]
[1644686425960,0.1703,2933.4,2933.1,0.50142507]
[1644686426804,0.1703,2933.4,2933.1,0.491]
[1644686427004,0.1703,2933.4,2933.1,0.50142507]
[1644686427204,0.1703,2933.4,2933.1,0.80142507]
[1644686427404,0.1703,2933.4,2933.1,1.65392507]
[1644686427604,0.1703,2933.4,2933.1,1.95392507]
[1644686428005,0.1703,2933.4,2933.1,1.9435]
[1644686428209,0.1703,2933.4,2933.1,1.95392507]
[1644686429110,0.1703,2933.4,2933.2,0.1703]
[1644686429911,0.1703,2933.4,2933.2,0.4703]
[1644686430109,0.1703,2933.4,2933.2,0.1703]
[1644686430312,0.1703,2933.4,2933.1,1.3435]
[1644686430556,0.1703,2933.4,2933.2,0.00487328]
[1644686431455,0.1703,2933.4,2933.1,0.8525]
[1644686431658,0.1703,2933.4,2933.2,0.01043088]
[1644686432356,0.1703,2933.4,2933.2,0.31043088]
[1644686432555,0.1703,2933.4,2933.2,0.01043088]
[1644686432756,0.1703,2933.4,2933.1,0.8525]
[1644686432958,0.1703,2933.4,2933.2,0.01043088]
[1644686433957,0.1703,2933.4,2932.9,0.3]
[1644686434204,0.1703,2933.4,2933.2,0.01043088]
[1644686434404,0.7460601,2933.7,2933.2,0.01043088]
[1644686434604,0.1703,2933.6,2933.2,0.01043088]
[1644686434804,0.7460601,2933.7,2933.2,0.01043088]
[1644686435203,0.7460601,2933.7,2932.7,1.87532]
[1644686435406,3.5371067,2933.6,2933.3,0.01043072]
[1644686435609,1.7460601,2933.7,2932.7,1.87532]
[1644686435610,0.02086143,2933.2,2932.7,1.87532]
[1644686438063,0.02086143,2933.2,2932.8,0.1703]
[1644686438264,0.02086143,2933.2,2932.9,0.3]
[1644686438467,0.02086143,2933.2,2932.9,0.85249]
[1644686438864,0.02086143,2933.2,2933.0,0.3]
[1644686439064,0.02086143,2933.2,2933.0,1.17307181]
[1644686439667,0.02086143,2933.2,2933.0,1.34337181]
[1644686439867,0.02086143,2933.2,2933.0,1.83437181]
[1644686440269,0.02086143,2933.2,2933.0,1.54480302]
[1644686441071,0.02086143,2933.2,2933.0,1.53437181]
[1644686441374,0.02086143,2933.2,2933.0,1.54418989]
[1644686442202,0.02086143,2933.2,2933.0,0.67111808]
[1644686442402,0.02086143,2933.2,2933.0,0.6613]
[1644686442604,0.02086143,2933.2,2933.0,0.67111808]
[1644686442802,0.02086143,2933.2,2933.0,0.18011808]
[1644686443407,0.02086143,2933.2,2933.0,0.00981808]
[1644686443604,0.02086143,2933.2,2932.9,0.85249]
[1644686443909,0.02086143,2933.2,2933.0,0.30981808]
[1644686444105,0.02086143,2933.2,2933.0,0.80081808]
[1644686444404,0.02086143,2933.2,2933.0,0.00981808]
[1644686444805,0.02086143,2933.2,2932.9,1.10423606]
[1644686445105,0.02086143,2933.2,2933.0,0.00981808]
[1644686446056,0.02086143,2933.2,2932.9,0.3]
[1644686446257,0.02086143,2933.2,2933.0,0.0098585]
[1644686447260,0.02086143,2933.2,2932.7,0.4703]
[1644686447559,0.02086143,2933.2,2933.0,0.0098585]
[1644686447759,0.84772325,2933.2,2933.0,0.0098585]
[1644686448360,0.84772325,2933.2,2932.7,0.1703]
[1644686448559,0.02086143,2933.2,2933.0,0.0098585]
[1644686449599,0.02086143,2933.2,2932.7,0.1703]
[1644686449800,0.02086143,2933.2,2933.0,0.0098558]
[1644686450706,0.02086143,2933.2,2932.6,0.1703]
[1644686450905,0.02086143,2933.2,2932.6,1.87534]
[1644686451104,0.02086143,2933.2,2933.0,0.0098558]
[1644686451907,0.02086143,2933.2,2932.7,0.1703]
[1644686452304,0.02086143,2933.2,2933.0,0.0098558]
[1644686453162,0.02086143,2933.2,2932.7,0.1703]
[1644686453562,0.02086143,2933.2,2933.0,0.00985597]
[1644686454361,0.02086143,2933.2,2932.9,0.74342367]
[1644686455963,0.02086143,2933.2,2932.9,1.59593367]
[1644686457003,0.02086143,2933.2,2932.9,0.86293499]
[1644686457402,1.45106292,2933.1,2932.9,0.01042499]
[1644686457801,0.02086143,2933.2,2932.9,0.01042499]
[1644686458002,1.45106869,2933.1,2932.7,0.491]
[1644686458203,1.45106869,2933.1,2932.9,0.01042508]
[1644686459205,1.45106869,2933.1,2932.7,0.491]
[1644686459606,1.45106869,2933.1,2932.9,0.01042508]
[1644686460464,1.45106869,2933.1,2932.7,0.491]
[1644686460657,1.44954608,2933.1,2932.9,0.01042508]
[1644686462460,0.02085015,2932.8,2932.7,0.491]
[1644686462663,0.02085015,2932.8,2932.5,0.1703]
[1644686462860,0.02085015,2932.8,2932.5,0.4703]
[1644686463061,0.02085015,2932.8,2932.5,0.1703]
[1644686464808,0.02085015,2932.8,2932.4,0.1703]
[1644686465209,0.02085015,2932.8,2932.2,0.17399241]
[1644686465409,0.02085015,2932.8,2932.5,0.00485442]
[1644686466415,0.02085015,2932.8,2932.4,0.1703]
[1644686467515,0.02085015,2932.8,2932.3,0.85640241]
[1644686468553,0.02085015,2932.8,2932.3,0.00369241]
[1644686468755,0.02085015,2932.8,2932.4,0.1705]
[1644686468954,0.02085015,2932.8,2932.2,0.17419241]
[1644686470355,0.02085015,2932.8,2932.4,0.01042011]
[1644686471159,0.02085015,2932.8,2932.2,0.17419241]
[1644686471360,0.02085015,2932.8,2932.5,0.00980746]
[1644686471807,0.02085015,2932.8,2932.5,0.00397832]
[1644686472412,0.02085015,2932.8,2932.2,0.17419241]
[1644686474814,0.02085015,2932.8,2932.2,0.00369241]
[1644686475217,0.64329979,2932.6,2932.2,0.00369241]
[1644686475459,0.1705,2932.5,2931.8,0.00369241]
[1644686475658,0.1705,2932.6,2931.8,0.00369241]
[1644686475856,0.66414994,2932.8,2931.6,0.00369241]
[1644686475857,0.81379979,2932.7,2931.6,0.00369241]
[1644686476056,0.71883044,2932.0,2931.4,0.00369241]
[1644686476258,0.71883044,2932.0,2931.6,0.04168866]
[1644686477259,0.71883044,2932.0,2931.5,0.1705]
[1644686477459,1.1705,2932.6,2931.7,0.01042126]
[1644686477860,0.1705,2932.7,2931.7,0.01042126]
[1644686478462,0.1705,2932.7,2931.6,0.00369241]
[1644686478662,0.68155768,2932.2,2932.1,0.0104206]
[1644686478963,0.1705,2932.7,2932.1,0.0104206]
[1644686479605,0.1705,2932.7,2931.6,0.00369241]
[1644686479805,0.1705,2932.7,2932.3,0.01042027]
[1644686480007,0.81765863,2932.6,2932.3,0.01042027]
[1644686480208,0.1705,2932.5,2932.3,0.01042027]
[1644686480808,1.45148455,2932.4,2931.4,0.17419241]
[1644686481008,1.45148455,2932.4,2932.3,0.01042027]
[1644686481210,2.2982132,2932.4,2932.3,0.01042027]
[1644686482009,2.2982132,2932.4,2931.4,0.17419241]
[1644686482209,1.45148455,2932.3,2931.4,0.17419241]
[1644686482410,1.45148455,2932.3,2932.2,0.01042035]
[1644686482610,1.45148455,2932.6,2932.2,0.01042035]
[1644686482813,1.45148455,2932.5,2932.2,0.01042035]
[1644686483069,1.45148455,2932.4,2932.2,0.01042035]
[1644686483268,1.45148455,2932.3,2931.8,0.00369241]
[1644686483470,1.0,2932.7,2932.2,0.01042035]
[1644686483669,0.85412441,2932.5,2932.2,0.01042035]
[1644686483869,1.45146228,2932.4,2932.2,0.01042035]
[1644686484271,0.02084069,2932.1,2931.8,0.00369241]
[1644686484469,0.02084069,2932.1,2931.7,0.3]
[1644686484670,0.02084069,2932.1,2931.6,0.1705]
[1644686485374,0.02084069,2932.1,2931.7,0.491]
[1644686485770,0.02084069,2932.1,2931.7,0.791]
[1644686486369,0.02084069,2932.1,2932.0,0.63576862]
[1644686487605,0.02084069,2932.1,2931.8,0.00369241]
[1644686487806,0.02084069,2932.1,2931.7,5.3258]
[1644686488307,0.02084069,2932.1,2931.8,0.01042101]
[1644686489306,0.02084069,2932.1,2931.7,1.091]
[1644686489506,0.02084069,2932.1,2931.8,0.01042101]
[1644686490108,0.02084069,2932.1,2931.8,0.85419035]
[1644686490307,1.45153086,2932.0,2931.8,0.85419035]
[1644686490561,1.45153086,2932.0,2931.7,0.491]
[1644686490562,0.02084069,2932.1,2931.7,0.491]
[1644686490760,0.02084069,2932.1,2931.8,0.01042101]
[1644686491661,0.02084069,2932.1,2931.7,0.6615]
[1644686491863,0.02084069,2932.1,2931.8,0.89901905]
[1644686492760,0.02084069,2932.1,2931.8,0.88859804]
[1644686492961,0.02084069,2932.1,2931.7,1.64386]
[1644686492962,0.02084069,2932.1,2931.7,1.34386]
[1644686493165,0.02084069,2932.1,2931.8,0.01042101]
[1644686493964,0.02084069,2932.1,2931.7,1.34386]
[1644686494404,0.02084069,2932.1,2931.8,0.65907985]
[1644686495204,0.02084069,2932.1,2931.8,0.64865884]